bitfinex/quotes_BTCUSD_20250730
["timestamp","ask_amount","ask_price","bid_price","bid_amount"]
[1753859485050,0.04411307,118440.0,118430.0,0.80413002]
[1753859485462,0.04206307,118440.0,118430.0,0.81257303]
[1753859485683,0.04206307,118440.0,118430.0,0.84537303]
[1753859485892,0.04206307,118440.0,118430.0,0.69908636]
[1753859486047,0.09351112,118440.0,118430.0,0.2137173]
[1753859486268,0.19138855,118440.0,118430.0,0.0844773]
[1753859486486,0.2266105,118430.0,118410.0,0.24299291]
[1753859486691,0.0430081,118420.0,118410.0,0.27747195]
[1753859486900,0.05630293,118420.0,118410.0,0.43270194]
[1753859487110,0.0810995,118420.0,118410.0,0.74094434]
[1753859487319,0.0810995,118420.0,118400.0,0.24486043]
[1753859487320,0.10574401,118420.0,118400.0,0.24486043]
[1753859487552,0.12497387,118420.0,118410.0,0.12928]
[1753859487760,0.13341831,118420.0,118410.0,0.12928]
[1753859488831,0.13341824,118420.0,118410.0,0.12928]
[1753859489043,0.05576738,118420.0,118410.0,0.673317]
[1753859489254,0.03165738,118420.0,118410.0,0.7111218]
[1753859489678,0.03166227,118420.0,118410.0,0.71212187]
[1753859490118,0.03166227,118420.0,118410.0,0.69523213]
[1753859490328,0.04010614,118420.0,118410.0,0.6952322]
[1753859490532,0.04855023,118420.0,118410.0,0.69523227]
[1753859490739,0.04855023,118420.0,118410.0,0.38698987]
[1753859490946,0.07266023,118420.0,118410.0,0.70367743]
[1753859491152,0.07266023,118420.0,118410.0,0.69523227]
[1753859491359,0.06475184,118420.0,118410.0,0.70367743]
[1753859491566,0.06475177,118420.0,118410.0,0.70367743]
[1753859491976,0.06475177,118420.0,118410.0,0.71212252]
[1753859492199,0.06475184,118420.0,118410.0,0.70367743]
[1753859492662,0.06475184,118420.0,118410.0,0.69523227]
[1753859492873,0.06475184,118420.0,118410.0,0.70367743]
[1753859493077,0.06475177,118420.0,118410.0,0.70367743]
[1753859493288,0.04786388,118420.0,118410.0,0.72056739]
[1753859493510,0.0321979,118420.0,118410.0,0.70367743]
[1753859493704,0.03219782,118420.0,118410.0,0.72056753]
[1753859493954,0.02375388,118420.0,118410.0,0.71212252]
[1753859494174,0.0321979,118420.0,118410.0,0.71212252]
[1753859494594,0.02375388,118420.0,118410.0,0.40388012]
[1753859494793,0.03219782,118420.0,118410.0,0.72056753]
[1753859494997,0.03220307,118420.0,118410.0,0.72056753]
[1753859495516,0.03220281,118420.0,118410.0,0.72056753]
[1753859495740,0.02375887,118420.0,118410.0,0.72056753]
[1753859495977,0.02375887,118420.0,118410.0,0.72901247]
[1753859496446,0.03220289,118420.0,118410.0,0.40388012]
[1753859496669,0.02375887,118420.0,118410.0,0.72901233]
[1753859496897,0.02174887,118420.0,118410.0,0.42076943]
[1753859497126,0.02174887,118420.0,118410.0,0.72901183]
[1753859497585,0.02174887,118420.0,118410.0,0.72056717]
[1753859498051,0.03019274,118420.0,118410.0,0.72056724]
[1753859498290,0.0647573,118420.0,118410.0,0.13028]
[1753859498521,0.09775687,118420.0,118410.0,0.13028]
[1753859498756,0.10620117,118420.0,118410.0,0.13028]
[1753859498975,0.10620117,118420.0,118410.0,0.13872523]
[1753859498976,0.09775687,118420.0,118410.0,0.13872523]
[1753859499203,0.08086877,118420.0,118410.0,0.68276244]
[1753859499434,0.03220264,118420.0,118410.0,0.72056738]
[1753859500118,0.02627123,118420.0,118410.0,0.41232498]
[1753859500549,0.02627123,118420.0,118410.0,0.72901225]
[1753859500550,0.01782736,118420.0,118410.0,0.72901225]
[1753859500773,0.01782736,118420.0,118410.0,0.72901175]
[1753859500989,0.01581736,118420.0,118410.0,0.72901175]
[1753859501230,0.10048777,118430.0,118410.0,0.72901125]
[1753859501466,0.0296553,118430.0,118420.0,0.52127167]
[1753859501708,0.0296553,118430.0,118420.0,0.58182596]
[1753859501931,0.03809853,118430.0,118420.0,0.56493729]
[1753859502161,0.03809853,118430.0,118420.0,0.57338166]
[1753859502396,0.03019045,118430.0,118420.0,0.57338166]
[1753859502626,0.04264375,118430.0,118420.0,0.57338173]
[1753859502843,0.03420045,118430.0,118420.0,0.57338173]
[1753859503063,0.03620045,118430.0,118420.0,0.5818261]
[1753859503282,0.02775722,118430.0,118420.0,0.5902704]
[1753859503499,0.02775722,118430.0,118420.0,0.5818261]
[1753859503715,0.03620052,118430.0,118420.0,0.57338173]
[1753859504162,0.03620052,118430.0,118420.0,0.24825038]
[1753859504163,0.03026946,118430.0,118420.0,0.24825038]
[1753859504386,0.06521686,118430.0,118420.0,0.24825038]
[1753859504610,0.06521679,118430.0,118420.0,0.24825038]
[1753859504831,0.04715635,118430.0,118420.0,0.24825038]
[1753859505058,0.04715635,118430.0,118420.0,0.07935999]
[1753859505810,0.04715635,118430.0,118420.0,0.38760239]
[1753859506044,0.04715635,118430.0,118420.0,0.3376024]
[1753859506280,0.04715635,118430.0,118420.0,0.38760239]
[1753859506772,0.11119274,118430.0,118420.0,0.07935999]
[1753859507002,0.11119274,118430.0,118420.0,0.38760239]
[1753859507246,0.1196364,118430.0,118420.0,0.3082424]
[1753859507491,0.01688789,118420.0,118410.0,0.73504474]
[1753859507717,0.01889789,118420.0,118410.0,0.77870957]
[1753859507936,0.01045387,118420.0,118410.0,0.78715473]
[1753859508203,0.01688789,118420.0,118410.0,0.79559982]
[1753859508426,0.01688789,118420.0,118410.0,0.78715473]
[1753859508641,0.01688789,118420.0,118410.0,0.79559982]
[1753859509526,0.00844387,118420.0,118410.0,0.80404483]
[1753859509739,0.01688796,118420.0,118410.0,0.77970957]
[1753859509948,0.01688796,118420.0,118410.0,0.78815473]
[1753859510165,0.01688789,118420.0,118410.0,0.79659982]
[1753859510387,0.03271135,118420.0,118410.0,0.79659982]
[1753859510618,0.03271135,118420.0,118410.0,0.77970957]
[1753859510858,0.03271135,118420.0,118410.0,0.78815466]
[1753859511290,0.03271135,118420.0,118410.0,0.72970958]
[1753859511534,0.03271135,118420.0,118410.0,0.73815474]
[1753859512027,0.04115544,118420.0,118410.0,0.72970958]
[1753859512257,0.6055105,118420.0,118410.0,0.13024]
[1753859512490,0.2972681,118420.0,118410.0,0.18023999]
[1753859512970,0.08916178,118420.0,118410.0,0.18023999]
[1753859513210,0.01582346,118420.0,118410.0,0.74377216]
[1753859513435,0.34,118430.0,118410.0,0.52845129]
[1753859513436,0.38116262,118430.0,118410.0,0.52845129]
[1753859513657,0.39501565,118430.0,118420.0,0.32513135]
[1753859513873,0.39501565,118430.0,118420.0,0.35508135]
[1753859514093,0.39501565,118430.0,118420.0,0.34663691]
[1753859514316,0.38657221,118430.0,118420.0,0.52397167]
[1753859514536,0.04657243,118430.0,118420.0,0.0883945]
[1753859514748,0.04657243,118430.0,118420.0,0.40508134]
[1753859514960,0.03865619,118430.0,118420.0,0.40508134]
[1753859515188,0.04709978,118430.0,118420.0,0.07994999]
[1753859515383,0.05502013,118430.0,118420.0,0.38819239]
[1753859515509,0.04857654,118430.0,118420.0,0.38819239]
[1753859515740,0.04857654,118430.0,118420.0,0.56552722]
[1753859516016,0.04857654,118430.0,118420.0,0.55708278]
[1753859516225,0.04857654,118430.0,118420.0,0.56552729]
[1753859517489,0.04857654,118430.0,118420.0,0.5155273]
[1753859517694,0.04857654,118430.0,118420.0,0.56552729]
[1753859517908,0.04857654,118430.0,118420.0,0.57397173]
[1753859518091,0.0316898,118430.0,118420.0,0.70683728]
[1753859518325,0.02376945,118430.0,118420.0,0.70683728]
[1753859518928,0.01783233,118430.0,118420.0,0.70683728]
[1753859519058,0.002,118430.0,118420.0,0.70683728]
[1753859522507,0.002,118430.0,118420.0,0.39859488]
[1753859522738,0.002,118430.0,118420.0,0.39015086]
[1753859522945,0.002,118430.0,118420.0,0.70683728]
[1753859525454,0.01598445,118440.0,118430.0,0.27560666]
[1753859525665,0.01598445,118440.0,118430.0,0.82743636]
[1753859525878,0.00014507,118440.0,118430.0,0.82743636]
[1753859526960,0.00014507,118440.0,118430.0,0.81899306]
[1753859527202,0.00014507,118440.0,118430.0,0.47266969]
[1753859527425,0.25455535,118440.0,118430.0,0.04999999]
[1753859527656,0.35487203,118440.0,118430.0,0.12912]
[1753859528143,0.09001984,118440.0,118430.0,0.18107999]
[1753859528359,0.01598445,118440.0,118430.0,0.82769636]
[1753859528818,0.00014507,118440.0,118430.0,0.81080954]
[1753859529031,0.02547298,118440.0,118430.0,0.77066581]
[1753859529257,0.04131236,118440.0,118430.0,0.77066581]
[1753859529469,0.03482637,118440.0,118430.0,0.78755327]
[1753859529689,0.03482637,118440.0,118430.0,0.79599686]
[1753859529918,0.03482637,118440.0,118430.0,0.78755327]
[1753859530619,0.32893129,118440.0,118430.0,0.17911999]
[1753859530857,0.34691625,118440.0,118430.0,0.12912]
[1753859531347,0.34691625,118440.0,118430.0,0.17911999]
[1753859532005,0.34691625,118440.0,118430.0,0.12912]
[1753859532240,0.34691625,118440.0,118430.0,0.17911999]
[1753859533802,0.34691625,118440.0,118430.0,0.18011999]
[1753859534489,0.34384625,118440.0,118430.0,0.18011999]
[1753859535113,0.34133798,118440.0,118430.0,0.18011999]
[1753859536089,0.34133798,118440.0,118430.0,0.13012]
[1753859536304,0.34133798,118440.0,118430.0,0.18011999]
[1753859537113,0.34133798,118440.0,118430.0,0.13012]
[1753859537316,0.67596503,118440.0,118430.0,0.13012]
[1753859539359,0.67289503,118440.0,118430.0,0.13012]
[1753859539847,0.67606503,118440.0,118430.0,0.13012]
[1753859541479,1.30999885,118440.0,118430.0,0.13]
[1753859541710,1.00175645,118440.0,118430.0,0.13]
[1753859541933,1.08623375,118440.0,118430.0,0.13]
[1753859542169,1.11238655,118440.0,118430.0,0.13]
[1753859543724,1.02790925,118440.0,118430.0,0.13]
[1753859544372,1.00967088,118440.0,118430.0,0.13]
[1753859544596,1.00967088,118440.0,118430.0,0.129]
[1753859544797,1.01167088,118440.0,118430.0,0.129]
[1753859546800,0.03377985,118410.0,118400.0,0.22999]
[1753859547020,0.24124344,118410.0,118400.0,0.23198]
[1753859547236,0.23279878,118410.0,118400.0,0.36098]
[1753859548068,0.22435391,118410.0,118400.0,0.36398]
[1753859548265,0.22649391,118410.0,118400.0,0.36398]
[1753859548498,0.5884947,118410.0,118400.0,0.33496]
[1753859548912,0.2802523,118410.0,118400.0,0.33696]
[1753859549117,0.6202523,118410.0,118400.0,0.33496]
[1753859549354,0.6202523,118410.0,118400.0,0.35892]
[1753859549843,0.6202523,118410.0,118400.0,0.35791]
[1753859549844,0.56641962,118410.0,118400.0,0.35791]
[1753859550063,0.54375962,118410.0,118400.0,0.36098]
[1753859550266,0.54375962,118410.0,118400.0,0.36198]
[1753859550682,0.53531453,118410.0,118400.0,0.36198]
[1753859551389,0.89988693,118410.0,118400.0,0.33296]
[1753859551603,0.67612183,118410.0,118400.0,0.33296]
[1753859552214,0.58847453,118410.0,118400.0,0.35692]
[1753859552440,0.56581453,118410.0,118400.0,0.36198]
[1753859552867,0.58847453,118410.0,118400.0,0.35891]
[1753859553291,0.58847453,118410.0,118400.0,0.35692]
[1753859554633,0.56581453,118410.0,118400.0,0.36198]
[1753859554854,0.53317453,118410.0,118400.0,0.36198]
[1753859555296,0.67485183,118410.0,118400.0,0.33296]
[1753859555483,0.98309423,118410.0,118400.0,0.33296]
[1753859555715,0.98899953,118410.0,118400.0,0.33296]
[1753859555934,0.68075713,118410.0,118400.0,0.33296]
[1753859556375,0.64209713,118410.0,118400.0,0.35891]
[1753859556616,0.62569713,118410.0,118400.0,0.36198]
[1753859556826,0.62355429,118410.0,118400.0,0.36198]
[1753859557050,0.53907699,118410.0,118400.0,0.36198]
[1753859559081,0.58132601,118410.0,118400.0,0.35891]
[1753859559314,0.61372601,118410.0,118400.0,0.33296]
[1753859559524,0.69820331,118410.0,118400.0,0.33296]
[1753859560619,0.69820331,118410.0,118400.0,0.35891]
[1753859560620,0.68200331,118410.0,118400.0,0.35891]
[1753859560841,0.64314331,118410.0,118400.0,0.36198]
[1753859563180,0.66580331,118410.0,118400.0,0.36198]
[1753859563641,0.68170331,118410.0,118400.0,0.36198]
[1753859564130,0.68170331,118410.0,118400.0,0.15595]
[1753859564647,0.69820331,118410.0,118400.0,0.15396]
[1753859565103,0.69820331,118410.0,118400.0,0.13]
[1753859565971,0.70137331,118410.0,118400.0,0.13]
[1753859566187,0.69820331,118410.0,118400.0,0.13]
[1753859567383,0.66580331,118410.0,118400.0,0.15396]
[1753859567632,0.64314331,118410.0,118400.0,0.15902]
[1753859569396,0.67402954,118410.0,118400.0,0.15396]
[1753859569627,1.01357194,118410.0,118400.0,0.13]
[1753859570104,0.70532954,118410.0,118400.0,0.13]
[1753859570523,0.7053536,118410.0,118400.0,0.13]
[1753859571267,1.454026,118410.0,118400.0,0.12992]
[1753859572102,1.454026,118410.0,118400.0,0.12892]
[1753859572283,1.47225641,118410.0,118400.0,0.12892]
[1753859573159,1.47325641,118410.0,118400.0,0.12892]
[1753859573385,1.03575641,118410.0,118400.0,0.12892]
[1753859573614,1.12023371,118410.0,118400.0,0.12892]
[1753859573838,1.12023371,118410.0,118360.0,0.29732879]
[1753859573839,0.01689509,118370.0,118360.0,0.29732879]
[1753859574067,0.01689509,118370.0,118360.0,0.67855209]
[1753859574068,0.05129684,118370.0,118360.0,0.67855209]
[1753859574285,0.05974464,118370.0,118360.0,0.50957609]
[1753859574551,0.05974464,118370.0,118360.0,0.54227481]
[1753859574778,0.05129684,118370.0,118360.0,0.54545481]
[1753859574996,0.05974456,118370.0,118360.0,0.55390346]
[1753859575223,0.04284919,118370.0,118360.0,1.0400546]
[1753859575444,0.03440175,118370.0,118360.0,1.0515029]
[1753859575667,0.01581728,118370.0,118360.0,0.7432605]
[1753859575921,0.01689367,118380.0,118370.0,0.18585768]
[1753859576142,0.06346488,118380.0,118370.0,0.39147239]
[1753859576367,0.06346488,118380.0,118370.0,0.11065999]
[1753859576614,0.08754934,118380.0,118370.0,0.11065999]
[1753859576836,0.09599657,118380.0,118370.0,0.41890239]
[1753859577059,0.08754934,118380.0,118370.0,0.41890239]
[1753859577265,0.02967705,118380.0,118370.0,0.60675993]
[1753859577547,0.02967705,118380.0,118370.0,0.61820765]
[1753859577812,0.02967705,118380.0,118370.0,0.71113253]
[1753859578019,0.02374164,118380.0,118370.0,0.84013253]
[1753859583083,0.00844601,118390.0,118380.0,0.18583675]
[1753859583295,0.02967993,118390.0,118380.0,0.62013346]
[1753859583556,0.02967993,118390.0,118380.0,0.64756346]
[1753859583765,0.02967993,118390.0,118380.0,0.6560104]
[1753859583975,0.04657231,118390.0,118380.0,0.50327969]
[1753859584188,0.05501875,118390.0,118380.0,0.19503729]
[1753859584602,0.04657231,118390.0,118380.0,0.19603729]
[1753859584827,0.12697481,118390.0,118380.0,0.19603729]
[1753859585254,0.11852837,118390.0,118380.0,0.20448466]
[1753859585468,0.11852837,118390.0,118380.0,0.19703729]
[1753859585692,0.12697481,118390.0,118380.0,0.19703729]
[1753859585894,0.11852837,118390.0,118380.0,0.20548466]
[1753859586117,0.12697488,118390.0,118380.0,0.19703729]
[1753859586321,0.05501882,118390.0,118380.0,0.19703729]
[1753859586762,0.05501875,118390.0,118380.0,0.19703729]
[1753859588074,0.04657231,118390.0,118380.0,0.20548466]
[1753859588294,0.05501875,118390.0,118380.0,0.19703729]
[1753859588521,0.04657231,118390.0,118380.0,0.20548466]
[1753859588747,0.05501875,118390.0,118380.0,0.19703729]
[1753859588963,0.04657231,118390.0,118380.0,0.19703729]
[1753859589179,0.03812601,118390.0,118380.0,0.36598474]
[1753859589417,0.04657224,118390.0,118380.0,0.37443204]
[1753859589628,0.04657224,118390.0,118380.0,0.68267444]
[1753859589830,0.05501861,118390.0,118380.0,0.50527969]
[1753859590115,0.06346512,118390.0,118380.0,0.50527969]
[1753859590323,0.05501861,118390.0,118380.0,0.50527969]
[1753859591361,0.02968273,118390.0,118380.0,0.69112138]
[1753859591785,0.02968273,118390.0,118380.0,0.68267437]
[1753859591999,0.03812881,118390.0,118380.0,0.69112145]
[1753859592208,0.03812881,118390.0,118380.0,0.69112152]
[1753859592641,0.03812881,118390.0,118380.0,0.68267437]
[1753859592854,0.03812881,118390.0,118380.0,0.68267444]
[1753859593069,0.03812881,118390.0,118380.0,0.69956882]
[1753859593519,0.02968273,118390.0,118380.0,0.7080159]
[1753859593751,0.04657504,118390.0,118380.0,0.39132642]
[1753859593985,0.05502141,118390.0,118380.0,0.68267444]
[1753859594210,0.05502134,118390.0,118380.0,0.68267444]
[1753859594472,0.03812881,118390.0,118380.0,0.69956882]
[1753859594710,0.05502126,118390.0,118380.0,0.68267444]
[1753859594927,0.06346763,118390.0,118380.0,0.37443211]
[1753859595169,0.06346763,118390.0,118380.0,0.68267451]
[1753859595396,0.05753165,118390.0,118380.0,0.68267451]
[1753859595866,0.05753165,118390.0,118380.0,0.20548466]
[1753859596064,0.25154569,118390.0,118380.0,0.13647729]
[1753859596371,0.36912299,118390.0,118380.0,0.13647729]
[1753859596585,0.35252299,118390.0,118380.0,0.13647729]
[1753859596808,0.33602299,118390.0,118380.0,0.16275729]
[1753859597026,0.14410981,118390.0,118380.0,0.16593729]
[1753859599256,0.14410981,118390.0,118380.0,0.1159373]
[1753859599495,0.14410981,118390.0,118380.0,0.16593729]
[1753859599967,0.31304299,118390.0,118380.0,0.13647729]
[1753859600201,0.33710299,118390.0,118380.0,0.07892999]
[1753859600435,0.31304299,118390.0,118380.0,0.08216999]
[1753859601321,0.30459669,118390.0,118380.0,0.03217]
[1753859601963,0.30459669,118390.0,118380.0,0.08216999]
[1753859602177,0.3046006,118390.0,118380.0,0.08216999]
[1753859602606,0.31054182,118390.0,118380.0,0.08216999]
[1753859602790,0.30209545,118390.0,118380.0,0.08216999]
[1753859603667,0.30209545,118390.0,118380.0,0.03217]
[1753859603878,0.30209545,118390.0,118380.0,0.08216999]
[1753859604088,0.32615545,118390.0,118380.0,0.08216999]
[1753859605175,0.32615545,118390.0,118380.0,0.03217]
[1753859605395,0.32615545,118390.0,118380.0,0.08216999]
[1753859607337,0.32615545,118390.0,118380.0,0.07892999]
[1753859607823,0.32616914,118390.0,118380.0,0.07892999]
[1753859608684,0.66616914,118390.0,118380.0,0.002]
[1753859608908,0.6927827,118390.0,118380.0,0.002]
[1753859612622,0.71023172,118390.0,118380.0,0.002]
[1753859613034,0.71025664,118390.0,118380.0,0.002]
[1753859613442,0.71025664,118390.0,118380.0,0.05199999]
[1753859614174,0.71025664,118390.0,118380.0,0.002]
[1753859615749,0.71025502,118390.0,118380.0,0.002]
[1753859615970,0.71025251,118390.0,118380.0,0.002]
[1753859618934,0.71025251,118390.0,118380.0,0.05199999]
[1753859620672,0.71025251,118390.0,118380.0,0.002]
[1753859620889,0.71025251,118390.0,118380.0,0.05199999]
[1753859621110,0.71025251,118390.0,118380.0,0.002]
[1753859624797,0.71025251,118390.0,118380.0,0.05199999]
[1753859625662,0.70729251,118390.0,118380.0,0.05199999]
[1753859625868,0.69129251,118390.0,118380.0,0.05199999]
[1753859626304,0.68284586,118390.0,118380.0,0.05199999]
[1753859628508,0.68284586,118390.0,118380.0,0.002]
[1753859628731,0.69944586,118390.0,118380.0,0.002]
[1753859629378,0.68284586,118390.0,118380.0,0.05199999]
[1753859629586,0.68284586,118390.0,118380.0,0.002]
[1753859629775,0.68284586,118390.0,118380.0,0.05199999]
[1753859630602,0.66674586,118390.0,118380.0,0.05199999]
[1753859630828,0.64268586,118390.0,118380.0,0.08005999]
[1753859631033,0.64058586,118390.0,118380.0,0.08005999]
[1753859631262,0.64058586,118390.0,118380.0,0.09575999]
[1753859631481,0.48009926,118390.0,118380.0,0.42030239]
[1753859631706,0.37817251,118390.0,118380.0,0.58924984]
[1753859631916,0.39506532,118390.0,118380.0,0.42030239]
[1753859632134,0.39506532,118390.0,118380.0,0.3703024]
[1753859632356,0.40351197,118390.0,118380.0,0.42030239]
[1753859632564,0.39506532,118390.0,118380.0,0.42030239]
[1753859632765,0.48798927,118390.0,118380.0,0.42030239]
[1753859632993,0.47954262,118390.0,118380.0,0.42030239]
[1753859633198,0.48798927,118390.0,118380.0,0.42030239]
[1753859633402,0.4879892,118390.0,118380.0,0.42030239]
[1753859635225,0.4879892,118390.0,118380.0,0.11205999]
[1753859635431,0.4879892,118390.0,118380.0,0.42030239]
[1753859636121,0.4879892,118390.0,118380.0,0.11205999]
[1753859636333,0.4879892,118390.0,118380.0,0.42030239]
[1753859636947,0.4879892,118390.0,118380.0,0.11205999]
[1753859637441,0.48798976,118390.0,118380.0,0.11205999]
[1753859637647,0.47954311,118390.0,118380.0,0.42030239]
[1753859638320,0.48798969,118390.0,118380.0,0.42030239]
[1753859639048,0.48798962,118390.0,118380.0,0.42030239]
[1753859639244,0.48798962,118390.0,118380.0,0.3703024]
[1753859639425,0.48798962,118390.0,118380.0,0.42030239]
[1753859639574,0.49643627,118390.0,118380.0,0.11205999]
[1753859639978,0.48798962,118390.0,118380.0,0.42030239]
[1753859640367,0.48799082,118390.0,118380.0,0.42030239]
[1753859641616,0.49643747,118390.0,118380.0,0.42030239]
[1753859641827,0.48799082,118390.0,118380.0,0.11205999]
[1753859642133,0.4879913,118390.0,118380.0,0.42030239]
[1753859642351,0.67511833,118390.0,118380.0,0.05405999]
[1753859642588,0.67511833,118390.0,118380.0,0.05199999]
[1753859642824,0.67511833,118390.0,118380.0,0.07502999]
[1753859643064,0.4901118,118390.0,118380.0,0.08005999]
[1753859643305,0.4901118,118390.0,118380.0,0.11105999]
[1753859643835,0.65059868,118390.0,118380.0,0.08005999]
[1753859644319,0.4795455,118390.0,118380.0,0.11165999]
[1753859646334,0.47109885,118390.0,118380.0,0.11165999]
[1753859647005,0.4795455,118390.0,118380.0,0.11165999]
[1753859647468,0.4795455,118390.0,118380.0,0.41990239]
[1753859647684,0.64847868,118390.0,118380.0,0.41990239]
[1753859648530,0.64003224,118390.0,118380.0,0.11165999]
[1753859648937,0.64215224,118390.0,118380.0,0.11165999]
[1753859650114,0.64215618,118390.0,118380.0,0.11165999]
[1753859650734,0.63370967,118390.0,118380.0,0.11165999]
[1753859651858,0.64978302,118390.0,118380.0,0.08005999]
[1753859652065,0.64978302,118390.0,118380.0,0.07502999]
[1753859652496,0.64978302,118390.0,118380.0,0.05199999]
[1753859652726,0.64978328,118390.0,118380.0,0.05199999]
[1753859653165,0.64978328,118390.0,118380.0,0.002]
[1753859653378,0.64978328,118390.0,118380.0,0.05199999]
[1753859655744,0.64978328,118390.0,118380.0,0.05179978]
[1753859656190,0.64978328,118390.0,118380.0,0.07482978]
[1753859656627,0.64978328,118390.0,118380.0,0.07688978]
[1753859656885,0.62526328,118390.0,118380.0,0.31139714]
[1753859657163,0.54078598,118390.0,118380.0,0.32749714]
[1753859657399,0.39507226,118390.0,118380.0,0.5743345]
[1753859657610,0.39507226,118390.0,118380.0,0.52433451]
[1753859657821,0.39507226,118390.0,118380.0,0.5743345]
[1753859658038,0.39507226,118390.0,118380.0,0.34279714]
[1753859658240,0.47954956,118390.0,118380.0,0.34279714]
[1753859659354,0.64848274,118390.0,118380.0,0.34279714]
[1753859659774,0.47954956,118390.0,118380.0,0.34279714]
[1753859660011,0.47954956,118390.0,118380.0,0.5743345]
[1753859660671,0.64848274,118390.0,118380.0,0.5743345]
[1753859660895,0.6484849,118390.0,118380.0,0.5743345]
[1753859661316,0.6484849,118390.0,118380.0,0.29279715]
[1753859661539,0.6484849,118390.0,118380.0,0.34279714]
[1753859663235,0.6484849,118390.0,118380.0,0.29279715]
[1753859663539,0.46369207,118390.0,118380.0,0.34279714]
[1753859663739,0.64848646,118390.0,118380.0,0.34279714]
[1753859664168,0.64877154,118390.0,118380.0,0.34279714]
[1753859664496,0.65077154,118390.0,118380.0,0.34279714]
[1753859664916,0.64232524,118390.0,118380.0,0.31139714]
[1753859665340,0.65670365,118390.0,118380.0,0.0795747]
[1753859665672,0.65661918,118390.0,118380.0,0.0795747]
[1753859665898,0.65661918,118390.0,118380.0,0.31111206]
[1753859666145,0.64195562,118390.0,118380.0,0.26111207]
[1753859666426,0.64195562,118390.0,118380.0,0.04457471]
[1753859666643,0.64195562,118390.0,118380.0,0.32611206]
[1753859667946,0.64195562,118390.0,118380.0,0.34271206]
[1753859670507,0.64195562,118390.0,118380.0,0.32611206]
[1753859672589,0.64195562,118390.0,118380.0,0.27611207]
[1753859672809,0.64195562,118390.0,118380.0,0.32611206]
[1753859673283,0.64195562,118390.0,118380.0,0.34131206]
[1753859673742,0.47302202,118390.0,118380.0,0.34131206]
[1753859674063,0.39499044,118390.0,118380.0,0.51025951]
[1753859674156,0.39499044,118390.0,118380.0,0.34975943]
[1753859674387,0.40343681,118390.0,118380.0,0.34975943]
[1753859674517,0.40343681,118390.0,118380.0,0.57284942]
[1753859674748,0.39499044,118390.0,118380.0,0.58085709]
[1753859674950,0.43832105,118390.0,118380.0,0.57240972]
[1753859675160,0.42987468,118390.0,118380.0,0.69980455]
[1753859675371,0.42987468,118390.0,118380.0,0.74980454]
[1753859675797,0.43832098,118390.0,118380.0,0.74980454]
[1753859676038,0.43832041,118390.0,118380.0,0.27828245]
[1753859676256,0.43832041,118390.0,118380.0,0.74135717]
[1753859677087,0.43832041,118390.0,118380.0,0.74980454]
[1753859677288,0.43832066,118390.0,118380.0,0.74135717]
[1753859677667,0.44676703,118390.0,118380.0,0.74135717]
[1753859679079,0.44676753,118390.0,118380.0,0.57240972]
[1753859679310,0.44676796,118390.0,118380.0,0.109335]
[1753859679519,0.60080861,118390.0,118380.0,0.30770236]
[1753859679768,0.62391861,118390.0,118380.0,0.28261236]
[1753859680003,0.62391861,118390.0,118380.0,0.23261237]
[1753859680264,0.62391861,118390.0,118380.0,0.28261236]
[1753859680467,0.45498543,118390.0,118380.0,0.28261236]
[1753859680687,0.62391861,118390.0,118380.0,0.23261237]
[1753859680905,0.62391861,118390.0,118380.0,0.28261236]
[1753859681778,0.62391825,118390.0,118380.0,0.28261236]
[1753859681990,0.61861188,118390.0,118380.0,0.051075]
[1753859682207,0.61861188,118390.0,118380.0,0.28261236]
[1753859682642,0.61547188,118390.0,118380.0,0.28261236]
[1753859682837,0.6157304,118390.0,118380.0,0.28261236]
[1753859684180,0.61547188,118390.0,118380.0,0.28235384]
[1753859684832,0.61547188,118390.0,118380.0,0.05081648]
[1753859685031,0.61547188,118390.0,118380.0,0.28235384]
[1753859685523,0.61547188,118390.0,118380.0,0.05081648]
[1753859686614,0.61570006,118390.0,118380.0,0.05081648]
[1753859687289,0.61570006,118390.0,118380.0,0.28235384]
[1753859688235,0.89952644,118390.0,118380.0,0.12933649]
[1753859688639,0.91779635,118390.0,118380.0,0.12933649]
[1753859688850,0.91779635,118390.0,118380.0,0.00081649]
[1753859689062,0.68625899,118390.0,118380.0,0.12933649]
[1753859689329,0.89952644,118390.0,118380.0,0.12933649]
[1753859689540,0.66798908,118390.0,118380.0,0.12933649]
[1753859689750,0.91779492,118390.0,118380.0,0.12933649]
[1753859690368,0.68625756,118390.0,118380.0,0.12933649]
[1753859690573,0.91779492,118390.0,118380.0,0.12933649]
[1753859690986,0.9177875,118390.0,118380.0,0.12933649]
[1753859693228,0.44891995,118390.0,118380.0,0.62060121]
[1753859693423,0.36987213,118390.0,118380.0,0.82969603]
[1753859693623,0.37831814,118390.0,118380.0,0.87969602]
[1753859693848,0.37831814,118390.0,118380.0,0.88814332]
[1753859694050,0.37831814,118390.0,118380.0,0.89659055]
[1753859694608,0.37831814,118390.0,118380.0,0.88814332]
[1753859694807,0.46158911,118390.0,118380.0,0.83814333]
[1753859695144,0.46158911,118390.0,118380.0,0.89659055]
[1753859695315,0.46158911,118390.0,118380.0,0.88814332]
[1753859695516,0.47003526,118390.0,118380.0,0.88814332]
[1753859695719,0.47848156,118390.0,118380.0,0.87124865]
[1753859695927,0.47003526,118390.0,118380.0,0.87124865]
[1753859696126,0.47848156,118390.0,118380.0,0.87124865]
[1753859696539,0.47003526,118390.0,118380.0,0.87124865]
[1753859696736,0.47003526,118390.0,118380.0,0.72527153]
[1753859697369,0.46158911,118390.0,118380.0,0.68371877]
[1753859697633,0.46158911,118390.0,118380.0,0.73371883]
[1753859697818,0.46158911,118390.0,118380.0,0.74216606]
[1753859697998,0.46158911,118390.0,118380.0,0.73371883]
[1753859698211,0.47003526,118390.0,118380.0,0.73371883]
[1753859699818,0.47003526,118390.0,118380.0,0.72527153]
[1753859700234,0.36987213,118390.0,118380.0,0.73371868]
[1753859700447,0.0299566,118390.0,118380.0,0.83508979]
[1753859701537,0.02401092,118390.0,118380.0,0.83508979]
[1753859702189,0.01608334,118390.0,118380.0,0.83508979]
[1753859702618,0.00022818,118390.0,118380.0,0.83508979]
[1753859704879,0.00022818,118390.0,118380.0,0.52643956]
[1753859705092,0.00022818,118390.0,118380.0,0.83508979]
[1753859705738,0.00022818,118390.0,118380.0,0.83508993]
[1753859711350,0.00022818,118390.0,118380.0,1.14374016]
[1753859711524,0.00022818,118390.0,118380.0,0.83508993]
[1753859711926,0.00022818,118390.0,118380.0,1.14374016]
[1753859712176,0.00022818,118390.0,118380.0,1.14292367]
[1753859712338,0.00022818,118390.0,118380.0,0.83427344]
[1753859712810,0.00022818,118390.0,118380.0,0.83627344]
[1753859714504,0.00022818,118390.0,118380.0,0.83727344]
[1753859717769,0.00022818,118390.0,118380.0,0.68341234]
[1753859717986,0.00022818,118390.0,118380.0,0.80904359]
[1753859718210,0.00219818,118390.0,118380.0,0.83418359]
[1753859718424,0.00219818,118390.0,118380.0,0.83723359]
[1753859718636,0.00219818,118390.0,118380.0,0.7872336]